[Event "CRO Team Cup 2018"]
[Site "Mali Losinj"]
[Date "2018.05.17"]
[Round "2.11"]
[White "Filipovic, Marko"]
[Black "Golubovic, Boris"]
[Result "1/2-1/2"]
[ECO "D41"]
[WhiteElo "2327"]
[BlackElo "2386"]
[Annotator "ChessBase"]
[PlyCount "289"]
[EventDate "2018.??.??"]
[EventType "team-tourn"]
[EventCountry "CRO"]
[SourceTitle "playchess.com"]
[Source "ChessBase"]
[SourceQuality "1"]
[TimeControl "40/5400+30:1800+30"]

1. d4 {[%emt 0:00:30]} Nf6 {[%emt 0:05:00]} 2. c4 {[%emt 0:00:00]} e6 {[%emt 0:01:30]} 3. Nc3 {[%emt 0:00:00]} d5 {[%emt 0:03:30]} 4. Nf3 {[%emt 0:00:30]} c5 {[%emt 0:02:30]} 5. cxd5 {[%emt 0:04:30]} Nxd5 {[%emt 0:00:30]} 6. e4 {[%emt 0:02:30]} Nxc3 {[%emt 0:02:30]} 7. bxc3 {[%emt 0:00:00]} cxd4 {[%emt 0:00:00]} 8. cxd4 {[%emt 0:00:00]} Bb4+ {[%emt 0:01:00]} 9. Bd2 {[%emt 0:00:30]} Bxd2+ {[%emt 0:00:30]} 10. Qxd2 {[%emt 0:00:00]} O-O {[%emt 0:00:30]} 11. Bc4 {[%emt 0:03:00]} Nd7 {[%emt 0:00:30]} 12. O-O {[%emt 0:00:30]} b6 {[%emt 0:01:30]} 13. Rad1 {[%emt 0:17:30]} Bb7 {[%emt 0:02:30]} 14. Rfe1 {[%emt 0:10:30]} Rc8 {[%emt 0:06:30]} 15. Bb3 {[%emt 0:13:30]} Qc7 {[%emt 0:15:30]} 16. d5 {[%emt 0:16:30]} exd5 {[%emt 0:05:30]} 17. exd5 {[%emt 0:00:30]} Qd6 {[%emt 0:16:30]} 18. Nd4 {[%emt 0:04:30]} Qf6 {[%emt 0:09:30]} 19. Re3 {[%emt 0:09:40]} Nc5 {[%emt 0:10:29]} 20. Rf3 {[%emt 0:10:32]} Qe5 {[%emt 0:07:49]} 21. Nf5 {[%emt 0:01:18]} Rfe8 {[%emt 0:03:02]} 22. Bc2 {[%emt 0:02:17]} Rcd8 {[%emt 0:03:48]} 23. Re3 {[%emt 0:00:58]} Qf6 {[%emt 0:00:02]} 24. d6 {[%emt 0:00:25]} Rxe3 {[%emt 0:00:15]} 25. Qxe3 {[%emt 0:00:11]} Ne6 {[%emt 0:01:15]} 26. Qd3 {[%emt 0:01:09]} g6 {[%emt 0:00:16]} 27. Nh6+ {[%emt 0:00:35]} Kg7 {[%emt 0:00:51]} 28. Ng4 {[%emt 0:00:12]} Qg5 {[%emt 0:00:40]} 29. Qc3+ {[%emt 0:00:11]} f6 {[%emt 0:00:17]} 30. Ne3 {[%emt 0:00:45]} Qe5 {[%emt 0:00:25]} 31. Qd2 {[%emt 0:01:05]} h5 {[%emt 0:00:24]} 32. Bb3 {[%emt 0:00:37]} Nc5 {[%emt 0:00:27]} 33. Bc2 {[%emt 0:00:46]} Rd7 {[%emt 0:00:30]} 34. Nc4 {[%emt 0:00:34]} Qe6 {[%emt 0:00:23]} 35. Qd4 {[%emt 0:00:35]} Qg4 {[%emt 0:00:25]} 36. Qxg4 {[%emt 0:00:37]} hxg4 {[%emt 0:00:30]} 37. Ne3 {[%emt 0:00:37]} f5 {[%emt 0:00:30]} 38. Rd4 {[%emt 0:00:21]} Kf6 {[%emt 0:00:35]} 39. Nc4 {[%emt 0:00:32]} Ba6 {[%emt 0:01:06]} 40. Ne3 {[%emt 0:00:00]} Ke6 {[%emt 0:01:01]} 41. h3 {[%emt 0:11:33]} gxh3 {[%emt 0:01:30]} 42. g4 {[%emt 0:00:30]} f4 {[%emt 0:15:02]} 43. Rxf4 {[%emt 0:04:25]} Bd3 {[%emt 0:00:26]} 44. g5 {[%emt 0:10:01]} Rxd6 {[%emt 0:04:25]} 45. Bxd3 {[%emt 0:03:20]} Nxd3 {[%emt 0:00:18]} 46. Re4+ {[%emt 0:00:37]} Kd7 {[%emt 0:05:10]} 47. Rh4 {[%emt 0:00:30]} Kc6 {[%emt 0:02:46]} 48. Rxh3 {[%emt 0:00:54]} b5 {[%emt 0:00:06]} 49. Rh7 {[%emt 0:01:37]} a5 {[%emt 0:00:15]} 50. Kg2 {[%emt 0:01:07]} Nb4 {[%emt 0:02:48]} 51. a3 {[%emt 0:00:21]} Nd5 {[%emt 0:00:05]} 52. Nc2 {[%emt 0:01:33]} b4 {[%emt 0:01:38]} 53. axb4 {[%emt 0:00:05]} axb4 {[%emt 0:00:04]} 54. Rh4 {[%emt 0:00:41]} Kc5 {[%emt 0:00:22]} 55. Na1 {[%emt 0:00:27]} Nc3 {[%emt 0:01:22]} 56. Nb3+ {[%emt 0:00:09]} Kb5 {[%emt 0:00:06]} 57. Rf4 {[%emt 0:00:51]} Rd5 {[%emt 0:00:27]} 58. Nd4+ {[%emt 0:00:46]} Ka4 {[%emt 0:01:12]} 59. Rg4 {[%emt 0:00:28]} Rc5 {[%emt 0:00:49]} 60. Nc2 {[%emt 0:00:15]} Nd5 {[%emt 0:00:09]} 61. Nxb4 {[%emt 0:00:11]} Nxb4 {[%emt 0:00:07]} 62. Kg3 {[%emt 0:00:27]} Kb5 {[%emt 0:00:05]} 63. Rf4 {[%emt 0:00:26]} Rxg5+ {[%emt 0:00:28]} 64. Rg4 {[%emt 0:00:11]} Rf5 {[%emt 0:01:27]} 65. Rxg6 {[%emt 0:00:12]} Nd5 {[%emt 0:00:06]} 66. f3 {[%emt 0:00:27]} Kc5 {[%emt 0:00:07]} 67. Ra6 {[%emt 0:00:17]} Rf8 {[%emt 0:00:45]} 68. Ra4 {[%emt 0:00:21]} Kd6 {[%emt 0:00:21]} 69. Re4 {[%emt 0:00:12]} Nf6 {[%emt 0:00:20]} 70. Ra4 {[%emt 0:00:07]} Ke5 {[%emt 0:00:12]} 71. Ra5+ {[%emt 0:00:07]} Nd5 {[%emt 0:00:23]} 72. Ra4 {[%emt 0:00:14]} Rg8+ {[%emt 0:00:37]} 73. Rg4 {[%emt 0:00:08]} Ra8 {[%emt 0:00:09]} 74. Rg5+ {[%emt 0:00:11]} Ke6 {[%emt 0:00:36]} 75. Rg4 {[%emt 0:00:21]} Ra3 {[%emt 0:00:08]} 76. Re4+ {[%emt 0:00:14]} Kf5 {[%emt 0:00:15]} 77. Rc4 {[%emt 0:00:16]} Ra5 {[%emt 0:00:44]} 78. Rh4 {[%emt 0:00:52]} Nf6 {[%emt 0:00:19]} 79. Rb4 {[%emt 0:00:36]} Nh5+ {[%emt 0:00:23]} 80. Kh4 {[%emt 0:00:28]} Nf4 {[%emt 0:00:25]} 81. Kg3 {[%emt 0:00:09]} Ng6 {[%emt 0:00:05]} 82. Rc4 {[%emt 0:00:19]} Ra3 {[%emt 0:00:33]} 83. Rb4 {[%emt 0:00:18]} Ne5 {[%emt 0:00:35]} 84. Rf4+ {[%emt 0:00:05]} Kg6 {[%emt 0:01:47]} 85. Rf8 {[%emt 0:00:29]} Nf7 {[%emt 0:00:11]} 86. Rg8+ {[%emt 0:01:39]} Kf6 {[%emt 0:00:21]} 87. Rg4 {[%emt 0:00:16]} Ne5 {[%emt 0:01:21]} 88. Rf4+ {[%emt 0:00:14]} Kg7 {[%emt 0:00:44]} 89. Rf5 {[%emt 0:00:11]} Nf7 {[%emt 0:00:50]} 90. Rf4 {[%emt 0:00:29]} Ng5 {[%emt 0:00:00]} 91. Rf5 {[%emt 0:02:24]} Ne6 {[%emt 0:00:00]} 92. Kg4 {[%emt 0:00:27]} Nd4 {[%emt 0:00:00]} 93. Rf4 {[%emt 0:00:37]} Rd3 {[%emt 0:00:10]} 94. Re4 {[%emt 0:00:42]} Nxf3 {[%emt 0:00:30]} 95. Kf4 {[%emt 0:00:38]} Nd4 {[%emt 0:00:30]} 96. Re3 {[%emt 0:00:39]} Rd1 {[%emt 0:00:30]} 97. Ke4 {[%emt 0:00:41]} Ne6 {[%emt 0:00:30]} 98. Kf5 {[%emt 0:00:04]} Kf7 {[%emt 0:00:39]} 99. Ra3 {[%emt 0:00:30]} Rd5+ {[%emt 0:00:40]} 100. Ke4 {[%emt 0:00:42]} Rh5 {[%emt 0:00:05]} 101. Rf3+ {[%emt 0:00:42]} Ke7 {[%emt 0:00:30]} 102. Rg3 {[%emt 0:00:45]} Nc5+ {[%emt 0:00:30]} 103. Kd4 {[%emt 0:00:24]} Kd6 {[%emt 0:00:07]} 104. Rg6+ {[%emt 0:01:59]} Ne6+ {[%emt 0:00:08]} 105. Kc4 {[%emt 0:00:36]} Rh4+ {[%emt 0:00:10]} 106. Kc3 {[%emt 0:00:20]} Kd5 {[%emt 0:00:10]} 107. Rg3 {[%emt 0:00:43]} Nc5 {[%emt 0:00:24]} 108. Rg5+ {[%emt 0:00:12]} Kc6 {[%emt 0:00:06]} 109. Rg6+ {[%emt 0:00:24]} Kb5 {[%emt 0:00:07]} 110. Kd2 {[%emt 0:00:28]} Rh3 {[%emt 0:00:19]} 111. Rg4 {[%emt 0:00:31]} Nb3+ {[%emt 0:00:47]} 112. Ke2 {[%emt 0:00:11]} Kc5 {[%emt 0:00:06]} 113. Kf2 {[%emt 0:00:43]} Nd4 {[%emt 0:00:33]} 114. Rg5+ {[%emt 0:00:20]} Kc4 {[%emt 0:00:14]} 115. Rg8 {[%emt 0:00:32]} Kd5 {[%emt 0:01:11]} 116. Rd8+ {[%emt 0:00:52]} Ke4 {[%emt 0:00:09]} 117. Re8+ {[%emt 0:00:17]} Kf4 {[%emt 0:00:10]} 118. Rf8+ {[%emt 0:00:10]} Ke4 {[%emt 0:01:16]} 119. Re8+ {[%emt 0:00:22]} Kd3 {[%emt 0:00:07]} 120. Rf8 {[%emt 0:00:53]} Rh2+ {[%emt 0:02:31]} 121. Kg3 {[%emt 0:00:12]} Rh7 {[%emt 0:00:33]} 122. Rd8 {[%emt 0:01:16]} Rf7 {[%emt 0:00:55]} 123. Kg4 {[%emt 0:00:20]} Ke4 {[%emt 0:00:10]} 124. Re8+ {[%emt 0:00:09]} Kd5 {[%emt 0:00:05]} 125. Rd8+ {[%emt 0:00:08]} Ke5 {[%emt 0:00:08]} 126. Re8+ {[%emt 0:00:07]} Ne6 {[%emt 0:00:06]} 127. Kg3 {[%emt 0:00:11]} Rf6 {[%emt 0:00:17]} 128. Ra8 {[%emt 0:01:12]} Rg6+ {[%emt 0:00:13]} 129. Kf2 {[%emt 0:00:08]} Rg7 {[%emt 0:00:38]} 130. Re8 {[%emt 0:00:26]} Kf5 {[%emt 0:00:26]} 131. Ra8 {[%emt 0:00:24]} Rd7 {[%emt 0:00:37]} 132. Ra5+ {[%emt 0:00:37]} Kf4 {[%emt 0:00:36]} 133. Ra4+ {[%emt 0:00:29]} Nd4 {[%emt 0:00:18]} 134. Rb4 {[%emt 0:00:12]} Ke5 {[%emt 0:00:42]} 135. Ra4 {[%emt 0:00:23]} Rf7+ {[%emt 0:00:19]} 136. Kg3 {[%emt 0:00:15]} Ke4 {[%emt 0:00:26]} 137. Kg2 {[%emt 0:01:16]} Rb7 {[%emt 0:00:47]} 138. Kf2 {[%emt 0:00:56]} Rb2+ {[%emt 0:00:11]} 139. Kg3 {[%emt 0:00:18]} Rd2 {[%emt 0:00:07]} 140. Rb4 {[%emt 0:00:24]} Ra2 {[%emt 0:01:01]} 141. Rc4 {[%emt 0:00:23]} Kd5 {[%emt 0:01:18]} 142. Rc8 {[%emt 0:00:14]} Nf5+ {[%emt 0:00:23]} 143. Kf3 {[%emt 0:00:17]} Ra3+ {[%emt 0:01:07]} 144. Kf4 {[%emt 0:00:13]} Ne7 {[%emt 0:00:09]} 145. Rd8+ {[%emt 0:00:12]} 1/2-1/2

[Event "CRO Team Cup 2018"]
[Site "Mali Losinj"]
[Date "2018.05.19"]
[Round "2.12"]
[White "Zelenika, Srdjan"]
[Black "Vargic, Drago"]
[Result "1/2-1/2"]
[ECO "C06"]
[WhiteElo "2218"]
[BlackElo "2283"]
[Annotator "NA"]
[PlyCount "56"]
[EventDate "2018.??.??"]
[EventType "team-tourn"]
[EventCountry "CRO"]
[SourceTitle "playchess.com"]
[Source "ChessBase"]
[SourceQuality "1"]
[TimeControl "40/5400+30:1800+30"]

{[%evp 11,45,30,31,25,47,49,33,26,32767,32767,32767,21,32767,32767,4,-8,0,0,4,-17,0,-19,-9,-3,0,0,0,0,32767,32767,32767,32767,76,0,288,316]} 1. e4 {[%emt 0:00:30]} e6 {[%emt 0:01:00]} 2. d4 {[%emt 0:00:00]} d5 {[%emt 0:00:00]} 3. Nd2 {[%emt 0:00:00]} Nf6 {[%emt 0:01:00]} 4. e5 {[%emt 0:00:30]} Nfd7 {[%emt 0:00:00]} 5. Bd3 {[%emt 0:00:00]} c5 {[%emt 0:00:00]} 6. c3 {[%emt 0:00:00]} Nc6 {[%emt 0:00:30]} 7. Ne2 {[%emt 0:00:30]} cxd4 {[%emt 0:01:30]} 8. cxd4 {[%emt 0:00:30]} f6 {[%emt 0:00:30]} 9. exf6 {[%emt 0:00:30]} Nxf6 {[%emt 0:00:30]} 10. O-O {[%emt 0:00:00]} Bd6 {[%emt 0:01:30]} 11. Nf3 {[%emt 0:01:00] LiveBook: 2885 Games} O-O {[%emt 0:00:30]} 12. h3 {[%emt 0:02:30]} Bd7 {[%emt 0:06:30] C06: French Tarrasch: 3...Nf6 4 e5 Nfd7 5 Bd3 main lines} (12... Qc7 13. Be3 Bd7 14. Nc3 a6 15. Rc1 Rae8 16. Bb1 Qb8 17. Re1 Kh8 18. Bg5 Bf4 19. Bxf4 Qxf4 20. Qd3 Re7 21. Rcd1 Be8 22. Ne5 Qh6 23. Nxc6 Bxc6 {1-0 (66) Guliev,L (2382)-Gadimbayli,A (2334) Baku 2016}) 13. Bf4 {[%emt 0:07:30]} Bxf4 {[%emt 0:07:30]} 14. Nxf4 {[%emt 0:00:00]} Ne4 {[%emt 0:01:30]} 15. Nh5 {[%emt 0:18:00]} g6 $146 {[%emt 0:04:30]} ({Predecessor:} 15... Be8 16. Ng3 Bg6 17. Re1 Rf4 18. Qc2 Nb4 19. Qd1 Nxd3 20. Qxd3 Nxg3 {0-1 (30) Cabral Teske,L (1894)-Souza,G (2002) Goiania 2017}) 16. Ng3 {[%emt 0:01:30]} Nxg3 {[%emt 0:05:30]} 17. fxg3 {[%emt 0:00:30]} Qb6 $1 {[%emt 0:00:00]} 18. Kh2 {[%emt 0:02:30]} Nxd4 {[%emt 0:03:00]} 19. Ne5 {[%emt 0:00:30]} Rxf1 {[%emt 0:06:30]} 20. Qxf1 {[%emt 0:01:30]} Be8 {[%emt 0:01:30]} 21. Qf4 {[%emt 0:03:30]} Nc6 {[%emt 0:12:30]} 22. Nxc6 {[%emt 0:41:43]} Bxc6 $18 {[%emt 0:13:30]} (22... Qxc6 $11 {and Black is okay.} 23. Rf1 Qc5) 23. Rf1 {[%emt 0:00:27]} Qxb2 {[%emt 0:05:30]} 24. Qf7+ {[%emt 0:01:11]} Kh8 {[%emt 0:00:30]} 25. Rf6 {[%emt 0:03:26]} Rg8 {[%emt 0:01:30]} 26. Qxe6 {[%emt 0:08:59]} d4 {[%emt 0:07:55]} 27. Rf3 {[%emt 0:00:28]} Bxf3 {[%emt 0:04:26]} 28. Qf6+ {[%emt 0:00:05]} Rg7 {[%emt 0:00:05]} 1/2-1/2

[Event "CRO Team Cup 2018"]
[Site "Mali Losinj"]
[Date "2018.05.17"]
[Round "2.15"]
[White "Djurovic, Goran"]
[Black "Havas, Janko"]
[Result "1/2-1/2"]
[ECO "B07"]
[WhiteElo "2394"]
[BlackElo "2224"]
[Annotator "ChessBase"]
[PlyCount "51"]
[EventDate "2018.??.??"]
[EventType "team-tourn"]
[EventCountry "CRO"]
[SourceTitle "playchess.com"]
[Source "ChessBase"]
[SourceQuality "1"]
[TimeControl "40/5400+30:1800+30"]

1. g3 {[%emt 0:02:30]} Nf6 {[%emt 0:01:00]} 2. Bg2 {[%emt 0:00:30]} g6 {[%emt 0:00:00]} 3. e4 {[%emt 0:02:30]} d6 {[%emt 0:00:00]} 4. d4 {[%emt 0:00:30]} Bg7 {[%emt 0:00:30]} 5. Ne2 {[%emt 0:01:30]} O-O {[%emt 0:00:30]} 6. Nbc3 {[%emt 0:02:30]} c6 {[%emt 0:01:30]} 7. a4 {[%emt 0:02:30]} a5 {[%emt 0:01:30]} 8. h3 {[%emt 0:02:30]} Na6 {[%emt 0:02:30]} 9. Be3 {[%emt 0:07:30]} Qc7 {[%emt 0:05:30]} 10. O-O {[%emt 0:07:30]} Nd7 {[%emt 0:03:30]} 11. f4 {[%emt 0:01:30]} Nb6 {[%emt 0:04:30]} 12. b3 {[%emt 0:02:30]} Nb4 {[%emt 0:05:30]} 13. Na2 {[%emt 0:11:30]} Nxa2 {[%emt 0:08:30]} 14. Rxa2 {[%emt 0:00:00]} f5 {[%emt 0:03:30]} 15. exf5 {[%emt 0:03:00]} Bxf5 {[%emt 0:01:30]} 16. g4 {[%emt 0:01:30]} Be6 {[%emt 0:01:30]} 17. c4 {[%emt 0:00:00]} d5 {[%emt 0:03:30]} 18. c5 {[%emt 0:00:00]} Nd7 {[%emt 0:00:30]} 19. Nc1 {[%emt 0:05:30]} b6 {[%emt 0:02:30]} 20. cxb6 {[%emt 0:00:30]} Qxb6 {[%emt 0:00:30]} 21. Re2 {[%emt 0:00:30]} Bf7 {[%emt 0:07:30]} 22. Bf2 {[%emt 0:04:30]} e6 {[%emt 0:00:30]} 23. Rfe1 {[%emt 0:09:30]} Rfe8 {[%emt 0:04:30]} 24. Kh1 {[%emt 0:02:30]} Rab8 {[%emt 0:01:30]} 25. Qd3 {[%emt 0:05:30]} Nf8 {[%emt 0:03:30]} 26. Rd1 {[%emt 0:04:42]} 1/2-1/2

[Event "CRO Team Cup 2018"]
[Site "Mali Losinj"]
[Date "2018.05.19"]
[Round "2.16"]
[White "Havas, Juraj"]
[Black "Bukal, Vladimir Jr"]
[Result "1/2-1/2"]
[ECO "A40"]
[WhiteElo "2028"]
[BlackElo "2388"]
[Annotator "NA"]
[PlyCount "118"]
[EventDate "2018.??.??"]
[EventType "team-tourn"]
[EventCountry "CRO"]
[SourceTitle "playchess.com"]
[Source "ChessBase"]
[SourceQuality "1"]
[TimeControl "40/5400+30:1800+30"]

1. d4 {[%emt 0:00:30]} e6 {[%emt 0:02:00]} 2. c4 {[%emt 0:00:00]} b6 {[%emt 0:03:30]} 3. Nf3 {[%emt 0:00:00]} Bb7 {[%emt 0:00:30]} 4. g3 {[%emt 0:00:30]} Bb4+ {[%emt 0:01:30] LiveBook: 232 Games} 5. Bd2 {[%emt 0:00:30]} a5 {[%emt 0:02:30] A40: Unusual replies to 1 d4} (5... Bxf3 6. exf3 Bxd2+ 7. Qxd2 Nc6 8. f4 Qf6 9. d5 Nd4 10. Bg2 Rd8 11. Nc3 c5 12. O-O-O Nh6 13. Ne4 Qe7 14. Rhe1 Nhf5 15. Qc3 {0-1 (62) Aronian,L (2805)-Rapport,R (2707) Riadh 2017}) 6. Bg2 {[%emt 0:02:30]} f5 {[%emt 0:03:30]} 7. O-O {[%emt 0:02:30]} Nf6 {[%emt 0:00:30]} 8. Bf4 {[%emt 0:04:30]} Be7 {[%emt 0:04:30]} 9. Nc3 {[%emt 0:03:30]} O-O {[%emt 0:04:30]} 10. d5 {[%emt 0:09:30]} Qc8 $146 {[%emt 0:23:30]} ({Predecessor:} 10... exd5 11. cxd5 Na6 12. d6 cxd6 13. Bxd6 Nc5 14. Nb5 Rc8 15. Bxe7 Qxe7 16. Nd6 Rcd8 17. Nxf5 Qe5 18. Nxe5 {1-0 (17) Hentzgen,T-Kruck,M Chemnitz 1997}) 11. Nb5 {[%emt 0:20:30]} Na6 {[%emt 0:03:30]} 12. d6 {[%emt 0:02:30]} cxd6 {[%emt 0:00:30]} 13. Bxd6 {[%emt 0:01:30]} Qd8 {[%emt 0:00:30]} 14. Qd4 {[%emt 0:06:30]} Bxd6 {[%emt 0:05:30]} 15. Nxd6 {[%emt 0:00:30]} Bc6 {[%emt 0:00:30]} 16. Rac1 {[%emt 0:02:30]} Nc5 {[%emt 0:01:30]} 17. b3 {[%emt 0:05:30]} Qe7 {[%emt 0:03:30]} 18. Rfd1 {[%emt 0:08:30]} Rab8 {[%emt 0:03:30]} 19. Qh4 {[%emt 0:13:13]} ({White should try} 19. Ne5 $16 Bxg2 20. Kxg2) 19... Nce4 {[%emt 0:09:30]} 20. Nxe4 {[%emt 0:01:00]} Bxe4 {[%emt 0:01:30]} 21. Ne5 {[%emt 0:02:43]} Bxg2 {[%emt 0:01:30]} 22. Kxg2 {[%emt 0:01:06]} d6 {[%emt 0:00:00]} 23. Nf3 {[%emt 0:01:13]} e5 {[%emt 0:00:00]} 24. Rc2 {[%emt 0:02:01]} h6 {[%emt 0:03:30]} 25. Rcd2 {[%emt 0:01:42]} Rbd8 {[%emt 0:00:00]} 26. a3 {[%emt 0:01:28]} Qc7 {[%emt 0:03:05]} 27. b4 {[%emt 0:02:20]} Ne4 {[%emt 0:06:07]} 28. Rd3 {[%emt 0:02:46]} Nf6 {[%emt 0:03:35]} 29. R3d2 {[%emt 0:00:46]} axb4 {[%emt 0:02:47]} 30. axb4 {[%emt 0:00:02]} e4 {[%emt 0:05:50]} 31. Nd4 {[%emt 0:00:21]} Qxc4 {[%emt 0:01:55]} 32. Nxf5 {[%emt 0:00:39]} Qe6 {[%emt 0:01:03]} 33. Nxd6 {[%emt 0:02:01]} Ng4 {[%emt 0:00:19]} 34. e3 {[%emt 0:00:48]} Rxf2+ {[%emt 0:00:47]} 35. Rxf2 {[%emt 0:00:04]} Nxe3+ {[%emt 0:00:06]} 36. Kg1 {[%emt 0:00:39]} Rxd6 {[%emt 0:00:02]} 37. Re1 {[%emt 0:00:41]} Ng4 {[%emt 0:00:36]} 38. Rf4 {[%emt 0:00:37]} Nf6 {[%emt 0:00:06]} 39. Rfxe4 {[%emt 0:00:33]} Nxe4 {[%emt 0:00:13]} 40. Qxe4 {[%emt 0:00:00]} Qxe4 {[%emt 0:01:29]} 41. Rxe4 {[%emt 0:00:47]} Kf7 {[%emt 0:00:00]} 42. Kg2 {[%emt 0:06:30]} Rd2+ {[%emt 0:01:00]} 43. Kh3 {[%emt 0:00:30]} Rb2 {[%emt 0:02:30]} 44. g4 {[%emt 0:05:44]} Kf6 {[%emt 0:00:00]} 45. Rf4+ {[%emt 0:12:15]} Ke6 {[%emt 0:03:00]} 46. Rc4 {[%emt 0:01:43]} Kd5 {[%emt 0:00:30]} 47. Rf4 {[%emt 0:01:30]} b5 {[%emt 0:11:58]} 48. g5 {[%emt 0:03:12]} Rb3+ {[%emt 0:05:27]} 49. Kg2 {[%emt 0:01:40]} hxg5 {[%emt 0:01:52]} 50. Rg4 {[%emt 0:01:06]} Rd3 {[%emt 0:01:45]} 51. Rxg5+ {[%emt 0:00:34]} Kc4 {[%emt 0:00:01]} 52. Rxg7 {[%emt 0:00:39]} Kxb4 {[%emt 0:00:02]} 53. h4 {[%emt 0:00:42]} Kc4 {[%emt 0:00:22]} 54. Rc7+ {[%emt 0:00:32]} Kb3 $11 {[%emt 0:00:51]} 55. h5 {[%emt 0:00:36]} b4 {[%emt 0:00:49]} 56. h6 {[%emt 0:00:19]} Ka2 {[%emt 0:00:55]} 57. Ra7+ {[%emt 0:00:24]} Kb2 {[%emt 0:00:09]} 58. h7 {[%emt 0:00:32]} Rd8 {[%emt 0:00:01]} 59. Kg3 {[%emt 0:00:23]} b3 {[%emt 0:00:21]} 1/2-1/2

[Event "CRO Team Cup 2018"]
[Site "Mali Losinj"]
[Date "2018.05.19"]
[Round "2.20"]
[White "Bobanac, Miro"]
[Black "Zekic, Patrik"]
[Result "1-0"]
[ECO "A11"]
[WhiteElo "2276"]
[BlackElo "1525"]
[Annotator "NA"]
[PlyCount "97"]
[EventDate "2018.??.??"]
[EventType "team-tourn"]
[EventCountry "CRO"]
[SourceTitle "playchess.com"]
[Source "ChessBase"]
[SourceQuality "1"]
[TimeControl "40/5400+30:1800+30"]

1. Nf3 {[%emt 0:00:30]} d5 {[%emt 0:03:00]} 2. g3 {[%emt 0:01:30]} Nf6 {[%emt 0:00:30]} 3. Bg2 {[%emt 0:00:30]} Bf5 {[%emt 0:06:30]} 4. c4 {[%emt 0:02:30]} c6 {[%emt 0:15:30]} 5. Qb3 {[%emt 0:03:30]} Qb6 {[%emt 0:10:30]} 6. d3 {[%emt 0:01:30]} e6 {[%emt 0:13:30] LiveBook: 35 Games A11: English Opening: 1...c6} 7. O-O {[%emt 0:03:30]} Bd6 {[%emt 0:08:30]} (7... Nbd7 8. cxd5 exd5 9. Qc2 Qc5 10. Qd1 Be7 11. Nc3 Rd8 12. Be3 Qa5 13. a3 a6 14. b4 Qc7 {½-½ (37) Tomashevsky,E (2710)-Vallejo Pons,F (2717) Tbilisi 2017}) 8. Be3 $146 {[%emt 0:02:30]} ({Predecessor:} 8. Nc3 Nbd7 9. Be3 Qc7 10. Rac1 dxc4 11. Qxc4 a6 12. Nd4 Bg6 13. b4 Nb6 14. Qb3 {1-0 (55) De la Fuente Gonzalez,F (2242)-Avendano Mateos,I (1912) Madrid 2007}) 8... Qxb3 {[%emt 0:03:30]} 9. axb3 {[%emt 0:00:30]} a6 {[%emt 0:02:30]} 10. Nc3 {[%emt 0:01:30]} Nbd7 {[%emt 0:02:30]} 11. Na4 {[%emt 0:04:30]} O-O {[%emt 0:03:30]} 12. Rfc1 {[%emt 0:09:30]} Ng4 {[%emt 0:12:23]} 13. Bd2 {[%emt 0:02:30]} Ngf6 {[%emt 0:08:05]} 14. Ba5 {[%emt 0:05:30]} Rac8 {[%emt 0:02:09]} 15. c5 {[%emt 0:01:30]} Bc7 {[%emt 0:00:53]} 16. Bxc7 {[%emt 0:05:30]} Rxc7 {[%emt 0:00:07]} 17. Nd2 {[%emt 0:07:30]} e5 {[%emt 0:02:17]} 18. b4 {[%emt 0:01:30]} Be6 {[%emt 0:02:33]} 19. e4 {[%emt 0:02:30]} d4 {[%emt 0:00:38]} ({Better is} 19... Rd8 $15) 20. b3 {[%emt 0:00:30]} g5 {[%emt 0:00:29]} 21. Nb2 {[%emt 0:00:30]} g4 {[%emt 0:00:45]} 22. Nbc4 {[%emt 0:00:30]} Bxc4 {[%emt 0:00:14]} 23. bxc4 {[%emt 0:00:30]} Rb8 {[%emt 0:00:43]} 24. Rcb1 {[%emt 0:00:30]} Rbc8 {[%emt 0:00:33]} 25. h3 {[%emt 0:10:30]} h5 {[%emt 0:00:29]} 26. f3 {[%emt 0:00:30]} gxf3 {[%emt 0:00:37]} 27. Nxf3 {[%emt 0:01:30]} Kh7 {[%emt 0:00:30]} 28. Nh4 {[%emt 0:02:30]} Rg8 {[%emt 0:00:26]} 29. Kh2 {[%emt 0:02:30]} Ne8 {[%emt 0:00:34]} 30. Rf1 {[%emt 0:00:30]} f6 {[%emt 0:00:25]} 31. Nf5 {[%emt 0:01:30]} Ng7 {[%emt 0:00:35]} 32. Nd6 {[%emt 0:00:30]} Ne6 {[%emt 0:00:31]} 33. h4 {[%emt 0:00:30]} Ng7 {[%emt 0:00:29]} 34. Bh3 {[%emt 0:00:30]} Rf8 {[%emt 0:00:31]} 35. Ra2 {[%emt 0:01:30]} Ne8 {[%emt 0:00:33]} 36. Raf2 {[%emt 0:02:30]} Ng7 {[%emt 0:00:26]} 37. Bxd7 {[%emt 0:02:40]} Rxd7 {[%emt 0:00:02]} 38. Rxf6 {[%emt 0:00:20]} Rxf6 {[%emt 0:00:35]} 39. Rxf6 {[%emt 0:00:30]} Kg8 {[%emt 0:00:19]} 40. Kh3 {[%emt 0:00:30]} Re7 {[%emt 0:01:39]} 41. Rh6 {[%emt 0:02:30]} Rd7 {[%emt 0:04:30]} 42. Rg6 {[%emt 0:06:30]} Kh7 {[%emt 0:02:30]} 43. Rg5 {[%emt 0:00:30]} Re7 {[%emt 0:00:30]} 44. Kg2 {[%emt 0:04:30]} Kh6 {[%emt 0:02:30] [#]} 45. Rxg7 $1 {[%emt 0:01:30]} Rxg7 {[%emt 0:01:30]} 46. Nf5+ {[%emt 0:00:00]} Kg6 {[%emt 0:00:30]} 47. Nxg7 {[%emt 0:00:00]} Kxg7 {[%emt 0:00:00]} 48. g4 {[%emt 0:00:30]} hxg4 {[%emt 0:02:19]} 49. Kg3 {[%emt 0:00:30]} 1-0

[Event "CRO Team Cup 2018"]
[Site "Mali Losinj"]
[Date "2018.05.18"]
[Round "2.21"]
[White "Pavic, Filip"]
[Black "Lalic, Bogdan"]
[Result "1/2-1/2"]
[ECO "B33"]
[WhiteElo "2233"]
[BlackElo "2396"]
[Annotator "NA"]
[PlyCount "34"]
[EventDate "2018.??.??"]
[EventType "team-tourn"]
[EventCountry "CRO"]
[SourceTitle "playchess.com"]
[Source "ChessBase"]
[SourceQuality "1"]
[TimeControl "40/5400+30:1800+30"]

{[%evp 19,34,9,32767,32767,32767,32767,32767,21,41,37,43,33,50,49,34,54,69]} 1. e4 {[%emt 0:00:30]} c5 {[%emt 0:05:00]} 2. Nf3 {[%emt 0:00:30]} Nc6 {[%emt 0:00:30]} 3. d4 {[%emt 0:00:30]} cxd4 {[%emt 0:00:30]} 4. Nxd4 {[%emt 0:00:30]} Nf6 {[%emt 0:00:00]} 5. Nc3 {[%emt 0:00:00]} e5 {[%emt 0:00:00]} 6. Ndb5 {[%emt 0:01:00]} d6 {[%emt 0:00:00]} 7. Nd5 {[%emt 0:01:30]} Nxd5 {[%emt 0:00:00]} 8. exd5 {[%emt 0:00:30]} Nb8 {[%emt 0:00:30]} 9. a4 {[%emt 0:02:30]} Be7 {[%emt 0:00:30]} 10. Be2 {[%emt 0:01:30] LiveBook: 92 Games} O-O {[%emt 0:00:30]} 11. O-O {[%emt 0:01:30]} a6 {[%emt 0:00:30]} 12. Na3 {[%emt 0:00:00]} Nd7 {[%emt 0:00:30]} 13. Nc4 {[%emt 0:05:00]} Nb6 {[%emt 0:01:30]} 14. Nxb6 {[%emt 0:08:30]} Qxb6 {[%emt 0:00:30]} 15. a5 {[%emt 0:01:30]} Qc7 {[%emt 0:00:30]} 16. Be3 {[%emt 0:02:30]} f5 {[%emt 0:00:30]} 17. c4 {[%emt 0:09:30]} Bf6 $14 {[%emt 0:01:30]} 1/2-1/2